[Event "Titled Tuesday Blitz August 22 Late 2023"]
[White "Keymer, Vincent"]
[Black "Firouzja, Alireza"]
[WhiteFideId "12940690"]
[BlackFideId "12573981"]
[WhiteElo "2963"]
[BlackElo "3096"]
[Result "1-0"]
[Round "5"]
[TimeControl "180+1"]
[Date "2023.08.22"]
[WhiteClock "0:00:47"]
[BlackClock "0:00:02"]
[Board "2"]

1. Nf3 {[%clk 0:03:00]}  Nf6 {[%clk 0:02:59]} 2. c4 {[%clk 0:03:01]}  g6 {[%clk 0:03:00]} 3. Nc3 {[%clk 0:03:01]}  Bg7 {[%clk 0:03:00]} 4. g3 {[%clk 0:03:02]}  O-O {[%clk 0:03:01]} 5. Bg2 {[%clk 0:03:03]}  d6 {[%clk 0:03:01]} 6. d4 {[%clk 0:03:03]}  Nbd7 {[%clk 0:03:02]} 7. O-O {[%clk 0:03:03]}  e5 {[%clk 0:03:02]} 8. e4 {[%clk 0:03:03]}  c6 {[%clk 0:03:03]} 9. h3 {[%clk 0:03:04]}  Qb6 {[%clk 0:03:03]} 10. c5 {[%clk 0:03:02]}  dxc5 {[%clk 0:03:04]} 11. dxe5 {[%clk 0:03:02]}  Ne8 {[%clk 0:03:05]} 12. e6 {[%clk 0:03:03]}  fxe6 {[%clk 0:03:06]} 13. Ng5 {[%clk 0:03:02]}  Ne5 {[%clk 0:03:06]} 14. f4 {[%clk 0:03:01]}  Nf7 {[%clk 0:03:06]} 15. Nxf7 {[%clk 0:02:58]}  Bd4+ {[%clk 0:03:07]} 16. Kh2 {[%clk 0:02:57]}  Rxf7 {[%clk 0:03:07]} 17. e5 {[%clk 0:02:58]}  Nc7 {[%clk 0:03:08]} 18. h4 {[%clk 0:02:54]}  Nd5 {[%clk 0:03:07]} 19. Ne4 {[%clk 0:02:54]}  Qd8 {[%clk 0:03:01]} 20. a4 {[%clk 0:02:45]}  a5 {[%clk 0:02:52]} 21. Ra3 {[%clk 0:02:44]}  b6 {[%clk 0:02:52]} 22. h5 {[%clk 0:02:36]}  Ba6 {[%clk 0:02:43]} 23. Rh1 {[%clk 0:02:29]}  Rg7 {[%clk 0:02:27]} 24. Ng5 {[%clk 0:02:26]}  Qe8 {[%clk 0:02:21]} 25. hxg6 {[%clk 0:02:17]}  Rxg6 {[%clk 0:01:14]} 26. Be4 {[%clk 0:02:17]}  h6 {[%clk 0:00:53]} 27. Nf3 {[%clk 0:01:30]}  Rg7 {[%clk 0:00:37]} 28. Kg2 {[%clk 0:01:25]}  Rd8 {[%clk 0:00:21]} 29. Rxh6 {[%clk 0:01:10]}  Kf8 {[%clk 0:00:03]} 30. Ng5 {[%clk 0:01:01]}  Bxb2 {[%clk 0:00:03]} 31. Qg4 {[%clk 0:00:48]}  Bxa3 {[%clk 0:00:02]} 32. Nxe6+ {[%clk 0:00:47]}  Ke7 {[%clk 0:00:02]} 33. Qxg7+ {[%clk 0:00:47]}  Qf7 {[%clk 0:00:03]} 34. Qxf7+ {[%clk 0:00:47]}  Kxf7 {[%clk 0:00:03]} 35. Nxd8+ {[%clk 0:00:48]}  Kg7 {[%clk 0:00:02]} 36. Rg6+ {[%clk 0:00:47]} 1-0


[Site "https://www.chess.com"]

[Event "Titled Tuesday Blitz August 22 Late 2023"]
[White "Xiong, Jeffery"]
[Black "Kramnik, Vladimir"]
[WhiteFideId "2047640"]
[BlackFideId "4101588"]
[WhiteElo "3003"]
[BlackElo "2936"]
[Result "1-0"]
[Round "5"]
[TimeControl "180+1"]
[Date "2023.08.22"]
[WhiteClock "0:00:23"]
[BlackClock "0:00:00"]
[Board "7"]

1. e4 {[%clk 0:03:00]}  c5 {[%clk 0:02:59]} 2. Nf3 {[%clk 0:03:01]}  e6 {[%clk 0:03:00]} 3. c3 {[%clk 0:03:01]}  d5 {[%clk 0:02:58]} 4. e5 {[%clk 0:03:01]}  Nc6 {[%clk 0:02:58]} 5. d4 {[%clk 0:03:01]}  Bd7 {[%clk 0:02:58]} 6. Bd3 {[%clk 0:02:58]}  cxd4 {[%clk 0:02:57]} 7. cxd4 {[%clk 0:02:53]}  Qb6 {[%clk 0:02:56]} 8. Bc2 {[%clk 0:02:53]}  Nb4 {[%clk 0:02:54]} 9. O-O {[%clk 0:02:15]}  Nxc2 {[%clk 0:02:36]} 10. Qxc2 {[%clk 0:02:16]}  Ne7 {[%clk 0:02:35]} 11. Nc3 {[%clk 0:02:16]}  Rc8 {[%clk 0:02:28]} 12. Qd3 {[%clk 0:02:14]}  a6 {[%clk 0:02:24]} 13. Bd2 {[%clk 0:02:06]}  Nf5 {[%clk 0:02:19]} 14. Rac1 {[%clk 0:01:57]}  h5 {[%clk 0:01:51]} 15. Na4 {[%clk 0:01:52]}  Qb5 {[%clk 0:01:46]} 16. Rxc8+ {[%clk 0:01:50]}  Bxc8 {[%clk 0:01:46]} 17. Qxb5+ {[%clk 0:01:51]}  axb5 {[%clk 0:01:45]} 18. Nb6 {[%clk 0:01:52]}  Bd7 {[%clk 0:01:43]} 19. Rc1 {[%clk 0:01:38]}  Bc6 {[%clk 0:01:42]} 20. Kf1 {[%clk 0:01:25]}  Be7 {[%clk 0:01:39]} 21. Nc8 {[%clk 0:01:25]}  Bf8 {[%clk 0:01:26]} 22. Na7 {[%clk 0:01:19]}  Kd7 {[%clk 0:01:25]} 23. a4 {[%clk 0:01:16]}  bxa4 {[%clk 0:01:18]} 24. Nxc6 {[%clk 0:01:16]}  bxc6 {[%clk 0:01:18]} 25. Ra1 {[%clk 0:01:17]}  Be7 {[%clk 0:00:53]} 26. Rxa4 {[%clk 0:01:17]}  Rb8 {[%clk 0:00:52]} 27. b4 {[%clk 0:01:16]}  Rb7 {[%clk 0:00:44]} 28. Ke2 {[%clk 0:01:00]}  f6 {[%clk 0:00:34]} 29. Kd3 {[%clk 0:01:00]}  Bd8 {[%clk 0:00:33]} 30. Ra8 {[%clk 0:00:50]}  Bb6 {[%clk 0:00:26]} 31. Rh8 {[%clk 0:00:45]}  Ra7 {[%clk 0:00:26]} 32. Rxh5 {[%clk 0:00:43]}  Ra3+ {[%clk 0:00:23]} 33. Bc3 {[%clk 0:00:43]}  Ra2 {[%clk 0:00:09]} 34. Rh7 {[%clk 0:00:32]}  Rxf2 {[%clk 0:00:08]} 35. exf6 {[%clk 0:00:31]}  Rxg2 {[%clk 0:00:05]} 36. Ne5+ {[%clk 0:00:23]}  Kd6 {[%clk 0:00:03]} 37. f7 {[%clk 0:00:23]}  Ke7 {[%clk 0:00:00]} 38. Rh8 {[%clk 0:00:23]} 1-0


[Site "https://www.chess.com"]

[Event "Titled Tuesday Blitz August 22 Late 2023"]
[White "Grigorjev, Iljya"]
[Black "Van Foreest, Jorden"]
[WhiteFideId "24159565"]
[BlackFideId "1039784"]
[WhiteElo "2909"]
[BlackElo "3001"]
[Result "0-1"]
[Round "5"]
[TimeControl "180+1"]
[Date "2023.08.22"]
[WhiteClock "0:00:00"]
[BlackClock "0:00:53"]
[Board "8"]

1. e4 {[%clk 0:03:00]}  g6 {[%clk 0:03:00]} 2. d4 {[%clk 0:03:00]}  Bg7 {[%clk 0:03:01]} 3. Nc3 {[%clk 0:03:01]}  d6 {[%clk 0:03:01]} 4. Nf3 {[%clk 0:02:58]}  a6 {[%clk 0:02:59]} 5. a4 {[%clk 0:02:55]}  b6 {[%clk 0:02:58]} 6. Be3 {[%clk 0:02:45]}  Nd7 {[%clk 0:02:53]} 7. Bc4 {[%clk 0:02:39]}  e6 {[%clk 0:02:53]} 8. O-O {[%clk 0:02:40]}  Bb7 {[%clk 0:02:53]} 9. Re1 {[%clk 0:02:40]}  Ne7 {[%clk 0:02:53]} 10. Qd2 {[%clk 0:02:38]}  O-O {[%clk 0:02:52]} 11. Bh6 {[%clk 0:02:35]}  Nf6 {[%clk 0:02:51]} 12. Rad1 {[%clk 0:02:31]}  Qd7 {[%clk 0:02:30]} 13. e5 {[%clk 0:02:13]}  Bxh6 {[%clk 0:02:08]} 14. Qxh6 {[%clk 0:02:13]}  Bxf3 {[%clk 0:02:09]} 15. exf6 {[%clk 0:01:29]}  Nf5 {[%clk 0:02:09]} 16. Qf4 {[%clk 0:01:29]}  Bxd1 {[%clk 0:02:10]} 17. Rxd1 {[%clk 0:01:30]}  e5 {[%clk 0:01:53]} 18. Qg5 {[%clk 0:00:59]}  Kh8 {[%clk 0:01:46]} 19. dxe5 {[%clk 0:00:57]}  Rae8 {[%clk 0:01:46]} 20. g4 {[%clk 0:00:47]}  Rg8 {[%clk 0:01:47]} 21. Qf4 {[%clk 0:00:33]}  Nh4 {[%clk 0:01:32]} 22. Qg3 {[%clk 0:00:33]}  g5 {[%clk 0:01:28]} 23. exd6 {[%clk 0:00:21]}  cxd6 {[%clk 0:01:28]} 24. Nd5 {[%clk 0:00:19]}  Re4 {[%clk 0:01:28]} 25. Ne3 {[%clk 0:00:08]}  Rge8 {[%clk 0:01:08]} 26. Bd5 {[%clk 0:00:08]}  Rxa4 {[%clk 0:01:07]} 27. h3 {[%clk 0:00:08]}  Qc7 {[%clk 0:00:52]} 28. c4 {[%clk 0:00:08]}  Qc5 {[%clk 0:00:51]} 29. Bxf7 {[%clk 0:00:06]}  Rf8 {[%clk 0:00:51]} 30. Be6 {[%clk 0:00:04]}  Rxf6 {[%clk 0:00:51]} 31. Rxd6 {[%clk 0:00:04]}  Ra1+ {[%clk 0:00:51]} 32. Kh2 {[%clk 0:00:02]}  Rxf2+ {[%clk 0:00:51]} 33. Qxf2 {[%clk 0:00:01]}  Qxd6+ {[%clk 0:00:52]} 34. Qg3 {[%clk 0:00:00]}  Rh1+ {[%clk 0:00:53]} 0-1


[Site "https://www.chess.com"]

[Event "Titled Tuesday Blitz August 22 Late 2023"]
[White "Durarbayli, Vasif"]
[Black "Vasquez Schroeder, Rodrigo"]
[WhiteFideId "13402935"]
[BlackFideId "3400042"]
[WhiteElo "2874"]
[BlackElo "2975"]
[Result "0-1"]
[Round "5"]
[TimeControl "180+1"]
[Date "2023.08.22"]
[WhiteClock "0:00:00"]
[BlackClock "0:00:24"]
[Board "9"]

1. e4 {[%clk 0:03:00]}  c6 {[%clk 0:02:59]} 2. d4 {[%clk 0:03:00]}  d5 {[%clk 0:02:59]} 3. exd5 {[%clk 0:03:01]}  cxd5 {[%clk 0:03:00]} 4. c4 {[%clk 0:03:02]}  Nf6 {[%clk 0:02:59]} 5. Nc3 {[%clk 0:03:02]}  e6 {[%clk 0:03:00]} 6. Nf3 {[%clk 0:03:03]}  Bb4 {[%clk 0:02:59]} 7. cxd5 {[%clk 0:03:03]}  Nxd5 {[%clk 0:02:59]} 8. Bd2 {[%clk 0:03:02]}  Nc6 {[%clk 0:02:59]} 9. Bd3 {[%clk 0:03:03]}  O-O {[%clk 0:02:59]} 10. O-O {[%clk 0:03:04]}  Be7 {[%clk 0:02:53]} 11. Qe2 {[%clk 0:03:02]}  Nf6 {[%clk 0:02:50]} 12. Rad1 {[%clk 0:03:01]}  Nb4 {[%clk 0:02:50]} 13. Bb1 {[%clk 0:03:01]}  b6 {[%clk 0:02:50]} 14. Bg5 {[%clk 0:02:52]}  Ba6 {[%clk 0:02:48]} 15. Nb5 {[%clk 0:02:43]}  Rc8 {[%clk 0:02:31]} 16. Rfe1 {[%clk 0:02:21]}  g6 {[%clk 0:02:13]} 17. a4 {[%clk 0:02:13]}  Qd5 {[%clk 0:01:55]} 18. Qe5 {[%clk 0:01:46]}  Nc6 {[%clk 0:01:46]} 19. Qf4 {[%clk 0:01:15]}  Nh5 {[%clk 0:01:41]} 20. Qh4 {[%clk 0:01:15]}  Bxg5 {[%clk 0:01:36]} 21. Nxg5 {[%clk 0:01:15]}  Bxb5 {[%clk 0:01:28]} 22. Be4 {[%clk 0:01:05]}  Qd8 {[%clk 0:01:18]} 23. axb5 {[%clk 0:01:01]}  Nb4 {[%clk 0:00:57]} 24. Bf3 {[%clk 0:00:41]}  h6 {[%clk 0:00:55]} 25. Bxh5 {[%clk 0:00:27]}  hxg5 {[%clk 0:00:48]} 26. Qh3 {[%clk 0:00:28]}  gxh5 {[%clk 0:00:47]} 27. Qxh5 {[%clk 0:00:29]}  Qf6 {[%clk 0:00:42]} 28. Re5 {[%clk 0:00:29]}  Rfd8 {[%clk 0:00:42]} 29. Rxg5+ {[%clk 0:00:26]}  Kf8 {[%clk 0:00:42]} 30. h4 {[%clk 0:00:19]}  Rxd4 {[%clk 0:00:36]} 31. Re1 {[%clk 0:00:18]}  Rd5 {[%clk 0:00:33]} 32. Re3 {[%clk 0:00:12]}  Rc1+ {[%clk 0:00:31]} 33. Kh2 {[%clk 0:00:12]}  Qxf2 {[%clk 0:00:26]} 34. Qh6+ {[%clk 0:00:07]}  Ke7 {[%clk 0:00:27]} 35. Rxe6+ {[%clk 0:00:06]}  fxe6 {[%clk 0:00:26]} 36. Rg7+ {[%clk 0:00:07]}  Kd6 {[%clk 0:00:26]} 37. Qxc1 {[%clk 0:00:01]}  Qxh4+ {[%clk 0:00:24]} 38. Kg1 {[%clk 0:00:02]}  Qd4+ {[%clk 0:00:25]} 39. Kh2 {[%clk 0:00:03]}  Qxg7 {[%clk 0:00:25]} 40. Qf4+ {[%clk 0:00:00]}  Qe5 {[%clk 0:00:24]} 0-1


[Site "https://www.chess.com"]

[Event "Titled Tuesday Blitz August 22 Late 2023"]
[White "Sanal, Vahap"]
[Black "Nihal Sarin"]
[WhiteFideId "6300545"]
[BlackFideId "25092340"]
[WhiteElo "2925"]
[BlackElo "3151"]
[Result "0-1"]
[Round "5"]
[TimeControl "180+1"]
[Date "2023.08.22"]
[WhiteClock "0:00:00"]
[BlackClock "0:00:11"]
[Board "10"]

1. e4 {[%clk 0:02:49]}  c6 {[%clk 0:02:56]} 2. Nf3 {[%clk 0:02:42]}  d5 {[%clk 0:02:56]} 3. Nc3 {[%clk 0:02:39]}  g6 {[%clk 0:02:33]} 4. d4 {[%clk 0:02:35]}  Bg7 {[%clk 0:02:30]} 5. h3 {[%clk 0:02:33]}  dxe4 {[%clk 0:02:29]} 6. Nxe4 {[%clk 0:02:34]}  Nf6 {[%clk 0:02:30]} 7. Bd3 {[%clk 0:02:34]}  Nxe4 {[%clk 0:02:12]} 8. Bxe4 {[%clk 0:02:33]}  Bf5 {[%clk 0:02:13]} 9. Bxf5 {[%clk 0:02:17]}  Qa5+ {[%clk 0:02:13]} 10. c3 {[%clk 0:02:18]}  Qxf5 {[%clk 0:02:14]} 11. O-O {[%clk 0:02:17]}  O-O {[%clk 0:02:14]} 12. Qb3 {[%clk 0:02:13]}  Qb5 {[%clk 0:02:14]} 13. Qxb5 {[%clk 0:02:12]}  cxb5 {[%clk 0:02:15]} 14. a4 {[%clk 0:02:13]}  bxa4 {[%clk 0:02:16]} 15. Rxa4 {[%clk 0:02:12]}  e6 {[%clk 0:02:15]} 16. Ne5 {[%clk 0:02:06]}  Rc8 {[%clk 0:02:08]} 17. Bf4 {[%clk 0:02:03]}  Nc6 {[%clk 0:02:06]} 18. Nd3 {[%clk 0:01:57]}  Bf8 {[%clk 0:02:01]} 19. Rfa1 {[%clk 0:01:57]}  a5 {[%clk 0:01:52]} 20. Ne5 {[%clk 0:01:28]}  b5 {[%clk 0:01:50]} 21. R4a2 {[%clk 0:01:28]}  a4 {[%clk 0:01:46]} 22. Nxc6 {[%clk 0:01:26]}  Rxc6 {[%clk 0:01:46]} 23. Rd1 {[%clk 0:01:12]}  b4 {[%clk 0:01:20]} 24. cxb4 {[%clk 0:01:08]}  Bxb4 {[%clk 0:01:21]} 25. d5 {[%clk 0:01:00]}  exd5 {[%clk 0:01:22]} 26. Rxd5 {[%clk 0:00:59]}  Rc2 {[%clk 0:01:22]} 27. Rd4 {[%clk 0:00:46]}  Bc5 {[%clk 0:01:02]} 28. Raxa4 {[%clk 0:00:43]}  Rxa4 {[%clk 0:01:00]} 29. Rxa4 {[%clk 0:00:44]}  Rxf2 {[%clk 0:00:54]} 30. Ra8+ {[%clk 0:00:36]}  Kg7 {[%clk 0:00:53]} 31. Bd6 {[%clk 0:00:26]}  Bb6 {[%clk 0:00:45]} 32. Kh2 {[%clk 0:00:19]}  h5 {[%clk 0:00:28]} 33. b4 {[%clk 0:00:09]}  h4 {[%clk 0:00:19]} 34. Be5+ {[%clk 0:00:07]}  f6 {[%clk 0:00:18]} 35. Rb8 {[%clk 0:00:05]}  Be3 {[%clk 0:00:16]} 36. Rb7+ {[%clk 0:00:05]}  Kh6 {[%clk 0:00:17]} 37. Bd6 {[%clk 0:00:03]}  Rf1 {[%clk 0:00:15]} 38. Bf8+ {[%clk 0:00:04]}  Kg5 {[%clk 0:00:16]} 39. Rb5+ {[%clk 0:00:04]}  f5 {[%clk 0:00:16]} 40. Be7+ {[%clk 0:00:05]}  Kh5 {[%clk 0:00:14]} 41. g4+ {[%clk 0:00:03]}  hxg3+ {[%clk 0:00:14]} 42. Kxg3 {[%clk 0:00:03]}  g5 {[%clk 0:00:11]} 43. Kg2 {[%clk 0:00:03]}  Rf2+ {[%clk 0:00:11]} 44. Kh1 {[%clk 0:00:01]}  Kh4 {[%clk 0:00:11]} 45. Rb6 {[%clk 0:00:00]}  Bxb6 {[%clk 0:00:11]} 0-1


[Site "https://www.chess.com"]

[Event "Titled Tuesday Blitz August 22 Late 2023"]
[White "Schmakel, Sam"]
[Black "Dubov, Daniil"]
[WhiteFideId "2039311"]
[BlackFideId "24126055"]
[WhiteElo "2772"]
[BlackElo "3043"]
[Result "0-1"]
[Round "5"]
[TimeControl "180+1"]
[Date "2023.08.22"]
[WhiteClock "0:00:00"]
[BlackClock "0:00:05"]
[Board "12"]

1. c4 {[%clk 0:02:59]}  e6 {[%clk 0:02:59]} 2. Nf3 {[%clk 0:02:57]}  d5 {[%clk 0:03:00]} 3. e3 {[%clk 0:02:57]}  Nf6 {[%clk 0:03:00]} 4. b3 {[%clk 0:02:57]}  b6 {[%clk 0:02:59]} 5. Bb2 {[%clk 0:02:57]}  Bb7 {[%clk 0:02:59]} 6. Be2 {[%clk 0:02:57]}  Bd6 {[%clk 0:02:59]} 7. O-O {[%clk 0:02:56]}  Nbd7 {[%clk 0:02:59]} 8. Nc3 {[%clk 0:02:55]}  a6 {[%clk 0:02:59]} 9. d4 {[%clk 0:02:49]}  Qe7 {[%clk 0:02:57]} 10. a3 {[%clk 0:02:44]}  h5 {[%clk 0:02:56]} 11. b4 {[%clk 0:02:34]}  dxc4 {[%clk 0:02:46]} 12. Bxc4 {[%clk 0:02:31]}  b5 {[%clk 0:02:46]} 13. Bd3 {[%clk 0:02:25]}  e5 {[%clk 0:02:46]} 14. e4 {[%clk 0:02:02]}  exd4 {[%clk 0:02:09]} 15. Nd5 {[%clk 0:02:00]}  Nxd5 {[%clk 0:02:02]} 16. exd5 {[%clk 0:02:01]}  O-O {[%clk 0:01:55]} 17. Nxd4 {[%clk 0:01:55]}  Qg5 {[%clk 0:01:47]} 18. Nf5 {[%clk 0:01:15]}  Bxd5 {[%clk 0:01:44]} 19. g3 {[%clk 0:01:13]}  Rfe8 {[%clk 0:00:41]} 20. Nxg7 {[%clk 0:00:24]}  Ne5 {[%clk 0:00:40]} 21. Nxh5 {[%clk 0:00:04]}  Bf3 {[%clk 0:00:28]} 22. Qc1 {[%clk 0:00:02]}  Qxh5 {[%clk 0:00:24]} 23. Qf4 {[%clk 0:00:01]}  Nxd3 {[%clk 0:00:10]} 24. Qf6 {[%clk 0:00:02]}  Nxb2 {[%clk 0:00:09]} 25. Rae1 {[%clk 0:00:00]}  Be5 {[%clk 0:00:05]} 0-1


[Site "https://www.chess.com"]

[Event "Titled Tuesday Blitz August 22 Late 2023"]
[White "Zhu, Jiner"]
[Black "Naroditsky, Daniel"]
[WhiteFideId "8608059"]
[BlackFideId "2026961"]
[WhiteElo "2675"]
[BlackElo "3159"]
[Result "0-1"]
[Round "5"]
[TimeControl "180+1"]
[Date "2023.08.22"]
[WhiteClock "0:00:14"]
[BlackClock "0:01:01"]
[Board "16"]

1. e4 {[%clk 0:03:00]}  c5 {[%clk 0:02:58]} 2. Nf3 {[%clk 0:03:00]}  d6 {[%clk 0:02:59]} 3. Bb5+ {[%clk 0:03:00]}  Nd7 {[%clk 0:02:57]} 4. d4 {[%clk 0:03:00]}  cxd4 {[%clk 0:02:56]} 5. Qxd4 {[%clk 0:03:00]}  a6 {[%clk 0:02:56]} 6. Bxd7+ {[%clk 0:03:00]}  Bxd7 {[%clk 0:02:56]} 7. O-O {[%clk 0:03:00]}  e5 {[%clk 0:02:56]} 8. Qd3 {[%clk 0:02:59]}  h6 {[%clk 0:02:56]} 9. Nc3 {[%clk 0:02:59]}  Nf6 {[%clk 0:02:53]} 10. Nd2 {[%clk 0:02:56]}  b5 {[%clk 0:02:47]} 11. a4 {[%clk 0:02:54]}  Rb8 {[%clk 0:02:36]} 12. axb5 {[%clk 0:02:46]}  axb5 {[%clk 0:02:37]} 13. Rd1 {[%clk 0:02:44]}  Be7 {[%clk 0:02:33]} 14. Nf1 {[%clk 0:02:43]}  b4 {[%clk 0:02:33]} 15. Nd5 {[%clk 0:02:41]}  Nxd5 {[%clk 0:02:24]} 16. Qxd5 {[%clk 0:02:41]}  O-O {[%clk 0:02:24]} 17. Ne3 {[%clk 0:02:37]}  Rc8 {[%clk 0:02:22]} 18. Qb3 {[%clk 0:02:31]}  Be6 {[%clk 0:02:15]} 19. Nd5 {[%clk 0:02:08]}  Bxd5 {[%clk 0:02:14]} 20. Rxd5 {[%clk 0:02:06]}  Qc7 {[%clk 0:02:14]} 21. Qxb4 {[%clk 0:01:56]}  Qxc2 {[%clk 0:02:14]} 22. h3 {[%clk 0:01:49]}  Rc4 {[%clk 0:02:13]} 23. Qb7 {[%clk 0:01:47]}  Qxe4 {[%clk 0:01:59]} 24. Be3 {[%clk 0:01:25]}  Rb4 {[%clk 0:01:55]} 25. Qc6 {[%clk 0:01:19]}  Rxb2 {[%clk 0:01:54]} 26. Ra7 {[%clk 0:01:18]}  Bg5 {[%clk 0:01:46]} 27. Bxg5 {[%clk 0:00:35]}  Rb1+ {[%clk 0:01:28]} 28. Kh2 {[%clk 0:00:35]}  hxg5 {[%clk 0:01:28]} 29. Ra4 {[%clk 0:00:33]}  Qe1 {[%clk 0:01:04]} 30. Qxd6 {[%clk 0:00:28]}  Qh1+ {[%clk 0:01:00]} 31. Kg3 {[%clk 0:00:14]}  Rg1 {[%clk 0:01:01]} 0-1


[Site "https://www.chess.com"]

[Event "Titled Tuesday Blitz August 22 Late 2023"]
[White "Martinez Alcantara, Jose Eduardo"]
[Black "Schnaider, Ilan"]
[WhiteFideId "3805662"]
[BlackFideId "169013"]
[WhiteElo "3015"]
[BlackElo "2704"]
[Result "1-0"]
[Round "5"]
[TimeControl "180+1"]
[Date "2023.08.22"]
[WhiteClock "0:00:04"]
[BlackClock "0:00:01"]
[Board "20"]

1. e4 {[%clk 0:03:00]}  c5 {[%clk 0:02:59]} 2. Nf3 {[%clk 0:03:01]}  d6 {[%clk 0:02:59]} 3. c3 {[%clk 0:03:02]}  Nf6 {[%clk 0:02:58]} 4. h3 {[%clk 0:03:02]}  g6 {[%clk 0:02:54]} 5. Bd3 {[%clk 0:03:03]}  Bg7 {[%clk 0:02:55]} 6. Bc2 {[%clk 0:03:03]}  O-O {[%clk 0:02:55]} 7. d4 {[%clk 0:03:04]}  cxd4 {[%clk 0:02:55]} 8. cxd4 {[%clk 0:03:05]}  Nc6 {[%clk 0:02:56]} 9. O-O {[%clk 0:03:05]}  e5 {[%clk 0:02:56]} 10. d5 {[%clk 0:03:06]}  Nb4 {[%clk 0:02:56]} 11. Nc3 {[%clk 0:03:07]}  a5 {[%clk 0:02:50]} 12. Be3 {[%clk 0:02:57]}  Bd7 {[%clk 0:02:49]} 13. Bb1 {[%clk 0:02:56]}  Ne8 {[%clk 0:02:43]} 14. a3 {[%clk 0:02:43]}  Na6 {[%clk 0:02:43]} 15. Qb3 {[%clk 0:02:43]}  b5 {[%clk 0:02:10]} 16. Bd3 {[%clk 0:02:33]}  Rb8 {[%clk 0:02:09]} 17. Qd1 {[%clk 0:02:09]}  f5 {[%clk 0:02:04]} 18. a4 {[%clk 0:01:58]}  Nb4 {[%clk 0:01:46]} 19. Bxb5 {[%clk 0:01:56]}  Bxb5 {[%clk 0:01:46]} 20. Nxb5 {[%clk 0:01:55]}  fxe4 {[%clk 0:01:45]} 21. Ng5 {[%clk 0:01:54]}  Nc7 {[%clk 0:01:17]} 22. Nxc7 {[%clk 0:01:46]}  Qxc7 {[%clk 0:01:18]} 23. Ne6 {[%clk 0:01:47]}  Qc4 {[%clk 0:01:19]} 24. Nxf8 {[%clk 0:01:43]}  Bxf8 {[%clk 0:01:19]} 25. Rc1 {[%clk 0:01:22]}  Qxd5 {[%clk 0:01:18]} 26. Qg4 {[%clk 0:01:22]}  Qf7 {[%clk 0:01:06]} 27. Qxe4 {[%clk 0:01:18]}  Bg7 {[%clk 0:01:02]} 28. Qg4 {[%clk 0:01:09]}  h5 {[%clk 0:00:57]} 29. Qe2 {[%clk 0:01:00]}  Kh7 {[%clk 0:00:51]} 30. Bd2 {[%clk 0:00:56]}  d5 {[%clk 0:00:49]} 31. Rc5 {[%clk 0:00:52]}  e4 {[%clk 0:00:42]} 32. Rb5 {[%clk 0:00:37]}  Rxb5 {[%clk 0:00:25]} 33. axb5 {[%clk 0:00:37]}  Nd3 {[%clk 0:00:24]} 34. f3 {[%clk 0:00:29]}  Bd4+ {[%clk 0:00:23]} 35. Kh1 {[%clk 0:00:27]}  a4 {[%clk 0:00:20]} 36. fxe4 {[%clk 0:00:18]}  Nf2+ {[%clk 0:00:20]} 37. Rxf2 {[%clk 0:00:18]}  Bxf2 {[%clk 0:00:20]} 38. exd5 {[%clk 0:00:15]}  Bc5 {[%clk 0:00:20]} 39. Qf3 {[%clk 0:00:10]}  Qd7 {[%clk 0:00:15]} 40. Qf4 {[%clk 0:00:05]}  Kg8 {[%clk 0:00:06]} 41. Qxa4 {[%clk 0:00:04]}  Qf5 {[%clk 0:00:06]} 42. Qc4 {[%clk 0:00:02]}  Qb1+ {[%clk 0:00:06]} 43. Qc1 {[%clk 0:00:03]}  Qd3 {[%clk 0:00:02]} 44. Qxc5 {[%clk 0:00:03]}  Qxd2 {[%clk 0:00:03]} 45. Qc8+ {[%clk 0:00:03]}  Kh7 {[%clk 0:00:03]} 46. Qe6 {[%clk 0:00:03]}  Qc1+ {[%clk 0:00:02]} 47. Kh2 {[%clk 0:00:03]}  Qf4+ {[%clk 0:00:03]} 48. Kg1 {[%clk 0:00:04]}  Qc1+ {[%clk 0:00:03]} 49. Kf2 {[%clk 0:00:05]}  Qxb2+ {[%clk 0:00:04]} 50. Kf3 {[%clk 0:00:04]}  Qc3+ {[%clk 0:00:04]} 51. Ke4 {[%clk 0:00:03]}  Qc4+ {[%clk 0:00:04]} 52. Ke5 {[%clk 0:00:02]}  Qxb5 {[%clk 0:00:04]} 53. Qe7+ {[%clk 0:00:02]}  Kh6 {[%clk 0:00:05]} 54. Qf8+ {[%clk 0:00:02]}  Kh7 {[%clk 0:00:06]} 55. Qf7+ {[%clk 0:00:02]}  Kh6 {[%clk 0:00:06]} 56. Qf4+ {[%clk 0:00:03]}  Kh7 {[%clk 0:00:06]} 57. Qf7+ {[%clk 0:00:02]}  Kh6 {[%clk 0:00:06]} 58. Qc7 {[%clk 0:00:02]}  Qb2+ {[%clk 0:00:05]} 59. Ke6 {[%clk 0:00:01]}  Qe2+ {[%clk 0:00:05]} 60. Qe5 {[%clk 0:00:02]}  Qc4 {[%clk 0:00:03]} 61. Qh8+ {[%clk 0:00:01]}  Kg5 {[%clk 0:00:04]} 62. Qf6+ {[%clk 0:00:02]}  Kh6 {[%clk 0:00:04]} 63. Qf8+ {[%clk 0:00:02]}  Kh7 {[%clk 0:00:04]} 64. Qe7+ {[%clk 0:00:02]}  Kh6 {[%clk 0:00:04]} 65. Qd6 {[%clk 0:00:02]}  Qe4+ {[%clk 0:00:04]} 66. Kd7 {[%clk 0:00:02]}  Qa4+ {[%clk 0:00:03]} 67. Qc6 {[%clk 0:00:03]}  Qa7+ {[%clk 0:00:03]} 68. Qc7 {[%clk 0:00:03]}  Qa4+ {[%clk 0:00:03]} 69. Qc6 {[%clk 0:00:03]}  Qa7+ {[%clk 0:00:03]} 70. Kc8 {[%clk 0:00:04]}  Qf7 {[%clk 0:00:01]} 71. d6 {[%clk 0:00:04]}  Qf8+ {[%clk 0:00:01]} 72. Kc7 {[%clk 0:00:04]}  Qf7+ {[%clk 0:00:01]} 73. d7 {[%clk 0:00:04]}  Qf4+ {[%clk 0:00:02]} 74. Kc8 {[%clk 0:00:04]}  Qf5 {[%clk 0:00:01]} 75. h4 {[%clk 0:00:03]}  Qg4 {[%clk 0:00:01]} 76. Qc1+ {[%clk 0:00:03]}  Kh7 {[%clk 0:00:01]} 77. Qc6 {[%clk 0:00:04]}  Qf5 {[%clk 0:00:01]} 78. g3 {[%clk 0:00:04]}  Kh6 {[%clk 0:00:01]} 79. Kc7 {[%clk 0:00:04]}  Qe5+ {[%clk 0:00:02]} 80. Kb7 {[%clk 0:00:04]}  Qb2+ {[%clk 0:00:02]} 81. Kc8 {[%clk 0:00:05]}  Qh8+ {[%clk 0:00:01]} 82. d8=Q {[%clk 0:00:05]}  Qg7 {[%clk 0:00:01]} 83. Qg5+ {[%clk 0:00:04]}  Kh7 {[%clk 0:00:02]} 84. Qd7 {[%clk 0:00:04]}  Kh8 {[%clk 0:00:01]} 85. Qxg7+ {[%clk 0:00:04]}  Kxg7 {[%clk 0:00:01]} 86. Qe7+ {[%clk 0:00:04]} 1-0


[Site "https://www.chess.com"]